[Event "Hungarian Rapid-ch 2022"]
[Site "Ajka"]
[Date "2022.07.16"]
[Round "6.27"]
[White "Szelenyi, Norbert"]
[Black "Kelemen, David"]
[Result "0-1"]
[ECO "A25"]
[WhiteElo "2277"]
[BlackElo "2136"]
[Annotator "ChessBase"]
[PlyCount "100"]
[EventDate "2022.07.15"]
[EventType "swiss"]
[EventCountry "HUN"]
[SourceTitle "playchess.com"]
[Source "ChessBase"]
[SourceQuality "1"]
[TimeControl "900+10"]

1. g3 {[%emt 0:00:14]} g6 {[%emt 0:00:37]} 2. Bg2 {[%emt 0:00:06]} Bg7 {[%emt 0:00:02]} 3. c4 {[%emt 0:00:01]} e5 {[%emt 0:00:02]} 4. Nc3 {[%emt 0:00:11]} Nc6 {[%emt 0:00:02]} 5. e3 {[%emt 0:00:17]} f5 {[%emt 0:00:14]} 6. Nge2 {[%emt 0:00:03]} Nf6 {[%emt 0:00:04]} 7. O-O {[%emt 0:00:55]} O-O {[%emt 0:00:34]} 8. Rb1 {[%emt 0:01:28]} d6 {[%emt 0:01:16]} 9. b4 {[%emt 0:00:39]} e4 {[%emt 0:02:18]} 10. f4 {[%emt 0:00:55]} a5 {[%emt 0:00:41]} 11. a3 {[%emt 0:00:37]} axb4 {[%emt 0:00:21]} 12. axb4 {[%emt 0:00:02]} Be6 {[%emt 0:01:26]} 13. d3 {[%emt 0:00:13]} d5 {[%emt 0:01:55]} 14. b5 {[%emt 0:06:39]} exd3 {[%emt 0:01:02]} 15. bxc6 {[%emt 0:01:12]} dxe2 {[%emt 0:00:02]} 16. Qxe2 {[%emt 0:00:07]} bxc6 {[%emt 0:00:01]} 17. Rd1 {[%emt 0:00:39]} Rf7 {[%emt 0:01:43]} 18. cxd5 {[%emt 0:02:48]} cxd5 {[%emt 0:00:18]} 19. Qb5 {[%emt 0:00:05]} Rd7 {[%emt 0:00:24]} 20. Ne2 {[%emt 0:00:02]} Ne4 {[%emt 0:00:56]} 21. Nd4 {[%emt 0:00:44]} Bxd4 {[%emt 0:00:02]} 22. Rxd4 {[%emt 0:00:01]} Nc3 {[%emt 0:00:27]} 23. Qc6 {[%emt 0:00:35]} Ne2+ {[%emt 0:00:01]} 24. Kf1 {[%emt 0:00:08]} Nxd4 25. exd4 Rd6 {[%emt 0:00:11]} 26. Qc5 {[%emt 0:00:08]} Rb8 {[%emt 0:00:29]} 27. Ra1 {[%emt 0:00:21]} Rdb6 {[%emt 0:00:15]} 28. Ra7 {[%emt 0:00:22]} R8b7 {[%emt 0:00:54]} 29. Rxb7 {[%emt 0:00:12]} Rxb7 {[%emt 0:00:02]} 30. Ba3 {[%emt 0:00:01]} Rb1+ {[%emt 0:00:16]} 31. Kf2 {[%emt 0:00:05]} Bf7 {[%emt 0:00:30]} 32. Bf3 {[%emt 0:00:13]} h6 {[%emt 0:01:00]} 33. h4 {[%emt 0:00:03]} Kh7 {[%emt 0:01:01]} 34. Kg2 {[%emt 0:00:02]} Rb6 {[%emt 0:00:11]} 35. Kh3 {[%emt 0:00:16]} Rb3 {[%emt 0:00:18]} 36. Kg2 {[%emt 0:00:22]} Qe8 {[%emt 0:00:16]} 37. Bc1 {[%emt 0:00:17]} c6 {[%emt 0:00:12]} 38. Bd2 {[%emt 0:00:10]} Rb7 {[%emt 0:00:55]} 39. Kh3 {[%emt 0:00:10]} Rb5 {[%emt 0:00:19]} 40. Qd6 {[%emt 0:00:09]} Qe6 {[%emt 0:00:05]} 41. Qc7 {[%emt 0:00:09]} Rb2 {[%emt 0:00:03]} 42. Qa5 {[%emt 0:00:05]} Qd6 {[%emt 0:00:15]} 43. Qc3 {[%emt 0:00:19]} Ra2 {[%emt 0:00:01]} 44. Bc1 {[%emt 0:00:10]} Be6 {[%emt 0:00:26]} 45. Bg2 {[%emt 0:00:12]} g5 {[%emt 0:00:07]} 46. fxg5 {[%emt 0:00:12]} f4+ {[%emt 0:00:02]} 47. Kh2 {[%emt 0:00:01]} fxg3+ {[%emt 0:00:05]} 48. Kh1 {[%emt 0:00:05]} Bf5 {[%emt 0:00:17]} 49. Qf3 {[%emt 0:00:10]} Qe6 {[%emt 0:00:16]} 50. Be3 {[%emt 0:00:24]} Rxg2 {[%emt 0:00:03]} 0-1

[Event "Hungarian Rapid-ch 2022"]
[Site "Ajka"]
[Date "2022.07.16"]
[Round "6.28"]
[White "Kozma, Karoly"]
[Black "Laszlo, Csaba"]
[Result "1/2-1/2"]
[ECO "A05"]
[WhiteElo "2213"]
[BlackElo "1957"]
[Annotator "ChessBase"]
[PlyCount "89"]
[EventDate "2022.07.15"]
[EventType "swiss"]
[EventCountry "HUN"]
[SourceTitle "playchess.com"]
[Source "ChessBase"]
[SourceQuality "1"]
[TimeControl "900+10"]

1. Nf3 {[%emt 0:00:17]} Nf6 {[%emt 0:00:12]} 2. b3 {[%emt 0:00:02]} e6 {[%emt 0:00:02]} 3. Bb2 {[%emt 0:00:02]} b6 {[%emt 0:00:04]} 4. g3 {[%emt 0:00:03]} Bb7 {[%emt 0:00:03]} 5. Bg2 {[%emt 0:00:01]} Be7 {[%emt 0:00:17]} 6. O-O {[%emt 0:00:03]} O-O {[%emt 0:00:03]} 7. c4 {[%emt 0:00:02]} d5 {[%emt 0:00:14]} 8. cxd5 {[%emt 0:00:23]} Nxd5 {[%emt 0:00:04]} 9. d4 {[%emt 0:00:35]} Nd7 {[%emt 0:00:12]} 10. Nbd2 {[%emt 0:01:06]} c5 {[%emt 0:00:35]} 11. e4 {[%emt 0:01:15]} N5f6 {[%emt 0:02:00]} 12. e5 {[%emt 0:00:30]} Nd5 {[%emt 0:00:38]} 13. Nc4 {[%emt 0:00:04]} cxd4 {[%emt 0:00:39]} 14. Qxd4 {[%emt 0:00:28]} Bc5 {[%emt 0:00:58]} 15. Qg4 {[%emt 0:00:21]} Rc8 {[%emt 0:00:51]} 16. Rfd1 {[%emt 0:00:45]} b5 {[%emt 0:02:01]} 17. Nd6 {[%emt 0:04:01]} Bxd6 {[%emt 0:00:17]} 18. exd6 {[%emt 0:00:02]} N7f6 {[%emt 0:00:02]} 19. Qg5 {[%emt 0:00:11]} h6 {[%emt 0:01:33]} 20. Qe5 {[%emt 0:00:05]} Rc6 {[%emt 0:00:46]} 21. Nd4 {[%emt 0:01:27]} Rb6 {[%emt 0:00:33]} 22. Rac1 {[%emt 0:01:41]} a6 {[%emt 0:00:50]} 23. Bxd5 {[%emt 0:02:52]} Bxd5 {[%emt 0:00:29]} 24. Nf5 {[%emt 0:00:11]} exf5 {[%emt 0:01:43]} 25. Rxd5 {[%emt 0:00:03]} Re8 {[%emt 0:00:36]} 26. Qd4 {[%emt 0:00:22]} Re4 {[%emt 0:01:43]} 27. Qc3 {[%emt 0:00:42]} Rxd6 {[%emt 0:00:19]} 28. Rxd6 {[%emt 0:00:13]} Qxd6 {[%emt 0:00:01]} 29. Qc8+ {[%emt 0:00:01]} Re8 {[%emt 0:00:15]} 30. Qxf5 {[%emt 0:00:03]} Qe6 {[%emt 0:00:16]} 31. Qxe6 {[%emt 0:00:31]} Rxe6 {[%emt 0:00:00]} 32. Rc8+ {[%emt 0:00:01]} Kh7 {[%emt 0:00:05]} 33. Bxf6 {[%emt 0:00:37]} Rxf6 {[%emt 0:00:02]} 34. Ra8 {[%emt 0:00:06]} Kg6 {[%emt 0:00:08]} 35. Kg2 {[%emt 0:00:38]} Kf5 {[%emt 0:00:24]} 36. Kf3 {[%emt 0:00:02]} Ke5+ {[%emt 0:00:02]} 37. Ke3 {[%emt 0:00:01]} Kd5 {[%emt 0:00:03]} 38. Rc8 {[%emt 0:00:41]} Kd6 {[%emt 0:00:28]} 39. f4 {[%emt 0:00:07]} Kd7 {[%emt 0:00:04]} 40. Ra8 {[%emt 0:00:08]} Kc7 {[%emt 0:00:05]} 41. Kd4 {[%emt 0:00:33]} Kb7 {[%emt 0:00:14]} 42. Rf8 {[%emt 0:00:05]} Kc6 {[%emt 0:00:08]} 43. Ra8 {[%emt 0:00:11]} Kb7 {[%emt 0:00:01]} 44. Rf8 {[%emt 0:00:02]} Kc6 {[%emt 0:00:01]} 45. Rg8 1/2-1/2

[Event "Hungarian Rapid-ch 2022"]
[Site "Ajka"]
[Date "2022.07.16"]
[Round "6.29"]
[White "Laszlo, Janos"]
[Black "Mihalyfi, Gabor"]
[Result "1-0"]
[ECO "A06"]
[WhiteElo "2214"]
[BlackElo "1972"]
[Annotator "ChessBase"]
[PlyCount "75"]
[EventDate "2022.07.15"]
[EventType "swiss"]
[EventCountry "HUN"]
[SourceTitle "playchess.com"]
[Source "ChessBase"]
[SourceQuality "1"]
[TimeControl "900+10"]

1. Nf3 {[%emt 0:00:14]} d5 {[%emt 0:00:18]} 2. d4 {[%emt 0:00:04]} e6 {[%emt 0:00:14]} 3. c4 {[%emt 0:00:09]} dxc4 {[%emt 0:00:24]} 4. e3 {[%emt 0:00:04]} Bb4+ {[%emt 0:00:34]} 5. Bd2 {[%emt 0:00:34]} c5 {[%emt 0:00:33]} 6. Bxc4 {[%emt 0:00:23]} Nf6 {[%emt 0:00:36]} 7. Nc3 {[%emt 0:00:39]} O-O {[%emt 0:00:16]} 8. O-O {[%emt 0:00:09]} cxd4 {[%emt 0:00:18]} 9. exd4 {[%emt 0:00:07]} Nc6 {[%emt 0:00:07]} 10. a3 {[%emt 0:02:24]} Bxc3 {[%emt 0:00:16]} 11. bxc3 {[%emt 0:00:08]} a6 {[%emt 0:00:21]} 12. Re1 {[%emt 0:01:49]} b5 {[%emt 0:00:13]} 13. Bd3 {[%emt 0:00:03]} h6 {[%emt 0:00:44]} 14. Qc1 {[%emt 0:02:28]} Qd5 {[%emt 0:03:07]} 15. Bxh6 {[%emt 0:01:54]} Qh5 {[%emt 0:01:25]} 16. Bd2 {[%emt 0:00:55]} Bb7 {[%emt 0:00:02]} 17. Rb1 {[%emt 0:01:10]} Na5 {[%emt 0:00:41]} 18. Re5 {[%emt 0:00:29]} Qh8 {[%emt 0:00:15]} 19. Rg5 {[%emt 0:01:27]} Bxf3 {[%emt 0:00:29]} 20. gxf3 {[%emt 0:00:02]} Rac8 {[%emt 0:00:59]} 21. Kh1 {[%emt 0:00:15]} Nc4 {[%emt 0:00:15]} 22. Bf4 {[%emt 0:01:18]} Nd5 {[%emt 0:00:33]} 23. Bg3 {[%emt 0:00:43]} Qh6 {[%emt 0:00:53]} 24. f4 {[%emt 0:00:08]} Qh3 {[%emt 0:01:42]} 25. Bf1 {[%emt 0:00:19]} Qh7 {[%emt 0:00:08]} 26. f5 {[%emt 0:00:11]} exf5 {[%emt 0:00:27]} 27. Bd3 {[%emt 0:00:03]} Nd6 {[%emt 0:00:36]} 28. Bxd6 {[%emt 0:00:06]} Rxc3 {[%emt 0:00:02]} 29. Qd2 {[%emt 0:00:05]} Rfc8 {[%emt 0:00:14]} 30. Rbg1 {[%emt 0:00:03]} g6 {[%emt 0:01:13]} 31. Bxf5 {[%emt 0:00:02]} Rh3 {[%emt 0:00:00]} 32. Bxh3 {[%emt 0:00:05]} Qxh3 {[%emt 0:00:03]} 33. R5g3 {[%emt 0:00:07]} Qe6 {[%emt 0:00:05]} 34. Bc5 {[%emt 0:00:05]} Qe4+ {[%emt 0:00:07]} 35. f3 {[%emt 0:00:02]} Qe6 {[%emt 0:00:12]} 36. Qh6 Nc3 {[%emt 0:00:19]} 37. Rxg6+ {[%emt 0:00:09]} fxg6 {[%emt 0:00:05]} 38. Rxg6+ {[%emt 0:00:02]} 1-0

[Event "Hungarian Rapid-ch 2022"]
[Site "Ajka"]
[Date "2022.07.16"]
[Round "6.30"]
[White "Kolimar, Kristof Pal"]
[Black "Szalanczi, Emil"]
[Result "1-0"]
[ECO "A05"]
[WhiteElo "2160"]
[BlackElo "2042"]
[Annotator "ChessBase"]
[PlyCount "73"]
[EventDate "2022.07.15"]
[EventType "swiss"]
[EventCountry "HUN"]
[SourceTitle "playchess.com"]
[Source "ChessBase"]
[SourceQuality "1"]
[TimeControl "900+10"]

1. Nf3 {[%emt 0:00:13]} Nf6 {[%emt 0:00:12]} 2. c4 {[%emt 0:00:01]} g6 {[%emt 0:00:01]} 3. g3 {[%emt 0:00:02]} Bg7 {[%emt 0:00:04]} 4. Bg2 {[%emt 0:00:02]} c5 {[%emt 0:00:02]} 5. d4 {[%emt 0:00:03]} cxd4 {[%emt 0:00:04]} 6. Nxd4 {[%emt 0:00:02]} Nc6 {[%emt 0:00:01]} 7. Nc3 {[%emt 0:00:02]} O-O {[%emt 0:00:07]} 8. Nc2 {[%emt 0:00:03]} d6 {[%emt 0:00:26]} 9. O-O {[%emt 0:00:03]} Ng4 {[%emt 0:00:09]} 10. Qd2 {[%emt 0:02:50]} Bf5 {[%emt 0:00:40]} 11. h3 {[%emt 0:01:11]} Nge5 {[%emt 0:00:47]} 12. Ne3 {[%emt 0:00:48]} Be6 {[%emt 0:00:17]} 13. b3 {[%emt 0:00:09]} Qc8 {[%emt 0:01:20]} 14. Kh2 {[%emt 0:02:03]} Re8 {[%emt 0:00:24]} 15. Bb2 {[%emt 0:00:10]} Nd4 {[%emt 0:00:38]} 16. Ncd5 {[%emt 0:01:56]} Nec6 {[%emt 0:01:38]} 17. Nd1 {[%emt 0:01:26]} Bd7 {[%emt 0:02:34]} 18. e3 {[%emt 0:00:14]} Nf5 {[%emt 0:00:56]} 19. Bxg7 {[%emt 0:00:28]} Kxg7 {[%emt 0:00:15]} 20. Qb2+ {[%emt 0:00:42]} e5 {[%emt 0:00:47]} 21. N1c3 {[%emt 0:00:09]} h5 {[%emt 0:01:05]} 22. Ne4 {[%emt 0:00:12]} Qd8 {[%emt 0:00:27]} 23. Rfd1 {[%emt 0:00:23]} Re6 {[%emt 0:00:37]} 24. Rac1 {[%emt 0:00:39]} f6 {[%emt 0:00:53]} 25. c5 {[%emt 0:00:39]} Qf8 {[%emt 0:00:49]} 26. cxd6 {[%emt 0:00:27]} Nxd6 {[%emt 0:00:41]} 27. Nc7 {[%emt 0:00:29]} Rae8 {[%emt 0:00:12]} 28. Nxe6+ {[%emt 0:01:10]} Rxe6 {[%emt 0:00:14]} 29. Nc5 {[%emt 0:00:45]} Bc8 {[%emt 0:00:41]} 30. Nxe6+ {[%emt 0:00:04]} Bxe6 {[%emt 0:00:02]} 31. Bxc6 {[%emt 0:00:43]} Nf7 {[%emt 0:01:22]} 32. Bg2 {[%emt 0:00:04]} Qb4 {[%emt 0:00:42]} 33. Qd2 {[%emt 0:00:05]} Qa3 {[%emt 0:00:30]} 34. Rc7 {[%emt 0:00:11]} h4 {[%emt 0:00:23]} 35. Qd6 {[%emt 0:00:42]} hxg3+ {[%emt 0:00:41]} 36. fxg3 {[%emt 0:00:02]} Qxa2 {[%emt 0:00:15]} 37. Qxe6 {[%emt 0:00:06]} 1-0

[Event "Hungarian Rapid-ch 2022"]
[Site "Ajka"]
[Date "2022.07.16"]
[Round "7.1"]
[White "Gledura, Benjamin"]
[Black "Balog, Imre"]
[Result "1/2-1/2"]
[ECO "D11"]
[WhiteElo "2637"]
[BlackElo "2594"]
[Annotator "ChessBase"]
[PlyCount "77"]
[EventDate "2022.07.15"]
[EventType "swiss"]
[EventCountry "HUN"]
[SourceTitle "playchess.com"]
[Source "ChessBase"]
[SourceQuality "1"]
[TimeControl "900+10"]

1. d4 {[%emt 0:00:12]} d5 {[%emt 0:00:12]} 2. c4 {[%emt 0:00:02]} c6 {[%emt 0:00:02]} 3. Nf3 {[%emt 0:00:03]} Nf6 {[%emt 0:00:03]} 4. e3 {[%emt 0:00:04]} g6 {[%emt 0:00:19]} 5. Nc3 {[%emt 0:00:06]} Bg7 {[%emt 0:00:04]} 6. Be2 {[%emt 0:00:02]} O-O {[%emt 0:00:10]} 7. O-O {[%emt 0:00:04]} a6 {[%emt 0:00:02]} 8. a4 {[%emt 0:00:33]} a5 {[%emt 0:00:25]} 9. cxd5 {[%emt 0:01:28]} cxd5 {[%emt 0:00:13]} 10. Bd2 {[%emt 0:01:04]} Nc6 {[%emt 0:00:07]} 11. Ne5 {[%emt 0:02:22]} Nxe5 {[%emt 0:01:14]} 12. dxe5 {[%emt 0:00:02]} Ne4 {[%emt 0:00:02]} 13. Nxe4 {[%emt 0:00:12]} dxe4 {[%emt 0:00:01]} 14. Bc3 {[%emt 0:00:08]} Qc7 {[%emt 0:00:39]} 15. Qd5 {[%emt 0:02:05]} Bf5 {[%emt 0:00:23]} 16. Rac1 {[%emt 0:00:39]} Rfd8 {[%emt 0:03:23]} 17. Bd4 {[%emt 0:00:01]} Rxd5 {[%emt 0:00:43]} 18. Rxc7 {[%emt 0:00:02]} Bxe5 {[%emt 0:00:02]} 19. Bxe5 {[%emt 0:00:09]} Rxe5 {[%emt 0:00:03]} 20. Rxb7 {[%emt 0:00:38]} Rc8 {[%emt 0:00:05]} 21. Rb5 {[%emt 0:01:58]} Rxb5 {[%emt 0:00:21]} 22. Bxb5 {[%emt 0:00:01]} Rc2 {[%emt 0:00:13]} 23. h3 {[%emt 0:01:46]} Rxb2 {[%emt 0:00:02]} 24. Rd1 {[%emt 0:00:02]} h5 {[%emt 0:00:24]} 25. h4 {[%emt 0:00:04]} Kg7 {[%emt 0:01:26]} 26. Rd8 {[%emt 0:00:01]} Kf6 {[%emt 0:00:01]} 27. Ra8 {[%emt 0:00:02]} g5 {[%emt 0:00:02]} 28. hxg5+ {[%emt 0:00:45]} Kxg5 {[%emt 0:00:02]} 29. Rxa5 {[%emt 0:00:02]} Rb1+ {[%emt 0:00:28]} 30. Kh2 {[%emt 0:00:06]} Rb2 {[%emt 0:00:10]} 31. Bc6 {[%emt 0:00:28]} Kf6 {[%emt 0:00:12]} 32. f3 {[%emt 0:00:51]} exf3 {[%emt 0:00:30]} 33. Bxf3 {[%emt 0:00:02]} Bg4 {[%emt 0:00:10]} 34. Kg3 {[%emt 0:00:55]} Rb3 {[%emt 0:00:05]} 35. e4 {[%emt 0:01:56]} e5 {[%emt 0:00:26]} 36. Ra8 {[%emt 0:00:02]} Ra3 {[%emt 0:01:10]} 37. a5 {[%emt 0:00:01]} Kg5 {[%emt 0:00:11]} 38. Rg8+ {[%emt 0:00:03]} Kf6 {[%emt 0:00:01]} 39. Ra8 {[%emt 0:00:01]} 1/2-1/2

[Event "Hungarian Rapid-ch 2022"]
[Site "Ajka"]
[Date "2022.07.16"]
[Round "7.2"]
[White "Berkes, Ferenc"]
[Black "Csiszar, Csaba"]
[Result "1-0"]
[ECO "E56"]
[WhiteElo "2649"]
[BlackElo "2389"]
[Annotator "ChessBase"]
[PlyCount "69"]
[EventDate "2022.07.15"]
[EventType "swiss"]
[EventCountry "HUN"]
[SourceTitle "playchess.com"]
[Source "ChessBase"]
[SourceQuality "1"]
[TimeControl "900+10"]

1. d4 {[%emt 0:00:11]} Nf6 {[%emt 0:00:12]} 2. c4 {[%emt 0:00:02]} e6 {[%emt 0:00:01]} 3. Nc3 {[%emt 0:00:02]} Bb4 {[%emt 0:00:02]} 4. e3 {[%emt 0:00:01]} c5 {[%emt 0:00:48]} 5. Bd3 {[%emt 0:00:04]} d5 {[%emt 0:00:12]} 6. Nf3 {[%emt 0:00:09]} Nc6 {[%emt 0:00:03]} 7. O-O {[%emt 0:00:11]} O-O {[%emt 0:00:02]} 8. cxd5 {[%emt 0:00:03]} exd5 {[%emt 0:00:06]} 9. dxc5 {[%emt 0:00:01]} Bg4 {[%emt 0:00:11]} 10. Na4 {[%emt 0:01:12]} Qe7 {[%emt 0:00:14]} 11. a3 {[%emt 0:00:42]} Ba5 {[%emt 0:00:02]} 12. b4 {[%emt 0:01:19]} Bc7 {[%emt 0:00:01]} 13. Bb2 {[%emt 0:00:00]} Rad8 {[%emt 0:03:20]} 14. Be2 {[%emt 0:00:02]} Rfe8 {[%emt 0:00:54]} 15. b5 {[%emt 0:05:16]} Na5 {[%emt 0:00:18]} 16. Bd4 {[%emt 0:00:39]} Ne4 {[%emt 0:00:48]} 17. b6 {[%emt 0:00:41]} axb6 {[%emt 0:00:53]} 18. cxb6 {[%emt 0:00:01]} Bb8 {[%emt 0:00:55]} 19. Nc3 {[%emt 0:00:22]} Rd6 {[%emt 0:02:42]} 20. g3 {[%emt 0:00:15]} Nc6 {[%emt 0:01:10]} 21. Rc1 {[%emt 0:01:27]} Red8 {[%emt 0:01:31]} 22. Nb5 {[%emt 0:00:34]} Rh6 {[%emt 0:00:29]} 23. Nc7 {[%emt 0:00:02]} Qxa3 {[%emt 0:00:31]} 24. Ne5 {[%emt 0:01:52]} Bxe2 {[%emt 0:01:33]} 25. Qxe2 {[%emt 0:00:02]} Nxd4 {[%emt 0:00:02]} 26. exd4 {[%emt 0:00:02]} Rxb6 {[%emt 0:00:02]} 27. Nxd5 {[%emt 0:00:07]} Rbd6 {[%emt 0:00:40]} 28. Ne7+ {[%emt 0:00:30]} Kf8 {[%emt 0:00:01]} 29. Nf5 {[%emt 0:00:55]} Nf6 {[%emt 0:01:28]} 30. Nxd6 {[%emt 0:00:18]} Qxd6 {[%emt 0:00:01]} 31. Rfd1 {[%emt 0:00:10]} Qe6 {[%emt 0:00:09]} 32. Qb5 {[%emt 0:00:26]} Ba7 {[%emt 0:00:38]} 33. Qxb7 {[%emt 0:00:32]} Bxd4 {[%emt 0:00:02]} 34. Qb4+ {[%emt 0:00:06]} Qd6 {[%emt 0:00:24]} 35. Rxd4 1-0

[Event "Hungarian Rapid-ch 2022"]
[Site "Ajka"]
[Date "2022.07.16"]
[Round "7.3"]
[White "Czebe, Attila"]
[Black "Hera, Imre Jr."]
[Result "1/2-1/2"]
[ECO "A04"]
[WhiteElo "2385"]
[BlackElo "2568"]
[Annotator "ChessBase"]
[PlyCount "36"]
[EventDate "2022.07.15"]
[EventType "swiss"]
[EventCountry "HUN"]
[SourceTitle "playchess.com"]
[Source "ChessBase"]
[SourceQuality "1"]
[TimeControl "900+10"]

1. Nf3 {[%emt 0:00:13]} c5 {[%emt 0:00:12]} 2. b3 {[%emt 0:00:28]} d6 {[%emt 0:00:02]} 3. d4 {[%emt 0:00:22]} cxd4 {[%emt 0:00:04]} 4. Qxd4 {[%emt 0:00:03]} Nc6 {[%emt 0:00:10]} 5. Qd2 {[%emt 0:00:03]} Nf6 {[%emt 0:00:10]} 6. Bb2 {[%emt 0:00:02]} g6 {[%emt 0:02:22]} 7. c4 {[%emt 0:00:15]} Bg7 {[%emt 0:00:02]} 8. Nc3 {[%emt 0:00:01]} O-O {[%emt 0:00:10]} 9. e3 {[%emt 0:00:15]} b6 {[%emt 0:01:12]} 10. Be2 {[%emt 0:00:08]} Bb7 {[%emt 0:00:01]} 11. O-O {[%emt 0:00:04]} Rc8 {[%emt 0:00:20]} 12. Rac1 {[%emt 0:00:15]} Nb8 {[%emt 0:00:19]} 13. Nd4 {[%emt 0:03:26]} Nbd7 {[%emt 0:00:02]} 14. Bf3 {[%emt 0:00:02]} Bxf3 {[%emt 0:00:15]} 15. Nxf3 {[%emt 0:00:02]} Nc5 {[%emt 0:01:10]} 16. Rfd1 {[%emt 0:00:08]} Qd7 {[%emt 0:00:10]} 17. Nd5 {[%emt 0:00:38]} Nce4 {[%emt 0:02:01]} 18. Qe2 {[%emt 0:00:40]} Nxd5 {[%emt 0:00:09]} 1/2-1/2

[Event "Hungarian Rapid-ch 2022"]
[Site "Ajka"]
[Date "2022.07.16"]
[Round "7.4"]
[White "Horvath, Adam"]
[Black "Prohaszka, Peter"]
[Result "1/2-1/2"]
[ECO "B15"]
[WhiteElo "2520"]
[BlackElo "2570"]
[Annotator "ChessBase"]
[PlyCount "142"]
[EventDate "2022.07.15"]
[EventType "swiss"]
[EventCountry "HUN"]
[SourceTitle "playchess.com"]
[Source "ChessBase"]
[SourceQuality "1"]
[TimeControl "900+10"]

1. e4 {[%emt 0:00:12]} c6 {[%emt 0:00:11]} 2. d4 {[%emt 0:00:05]} d5 {[%emt 0:00:01]} 3. Nc3 {[%emt 0:00:01]} dxe4 {[%emt 0:00:02]} 4. Nxe4 {[%emt 0:00:02]} Nf6 {[%emt 0:00:02]} 5. Nxf6+ {[%emt 0:00:03]} exf6 {[%emt 0:00:01]} 6. c3 {[%emt 0:00:02]} Bd6 {[%emt 0:00:02]} 7. Bd3 {[%emt 0:00:01]} O-O {[%emt 0:00:01]} 8. Qc2 {[%emt 0:00:02]} Re8+ {[%emt 0:00:01]} 9. Ne2 {[%emt 0:00:02]} h5 {[%emt 0:00:01]} 10. O-O {[%emt 0:00:03]} h4 {[%emt 0:00:02]} 11. Bf4 {[%emt 0:00:02]} Na6 {[%emt 0:00:46]} 12. h3 {[%emt 0:00:02]} Nc7 {[%emt 0:00:07]} 13. Qd2 {[%emt 0:00:02]} Nd5 {[%emt 0:02:26]} 14. Bxd6 {[%emt 0:00:03]} Qxd6 {[%emt 0:00:01]} 15. Rfe1 {[%emt 0:00:38]} Bd7 {[%emt 0:01:22]} 16. Rad1 {[%emt 0:03:28]} a5 {[%emt 0:02:32]} 17. c4 {[%emt 0:00:37]} Ne7 {[%emt 0:00:01]} 18. Nc3 {[%emt 0:02:52]} Rad8 {[%emt 0:06:04]} 19. b3 {[%emt 0:07:21]} Bc8 {[%emt 0:01:27]} 20. d5 {[%emt 0:00:22]} f5 {[%emt 0:00:58]} 21. Qg5 {[%emt 0:00:31]} Qf6 {[%emt 0:00:20]} 22. Qxf6 {[%emt 0:00:14]} gxf6 {[%emt 0:00:01]} 23. Be2 {[%emt 0:00:37]} Ng6 {[%emt 0:00:05]} 24. d6 {[%emt 0:00:36]} Re6 {[%emt 0:01:02]} 25. c5 {[%emt 0:00:18]} Re5 {[%emt 0:01:09]} 26. Na4 {[%emt 0:00:06]} Be6 {[%emt 0:00:02]} 27. Rd4 {[%emt 0:00:33]} Nf8 {[%emt 0:00:11]} 28. f4 {[%emt 0:00:12]} Rd5 {[%emt 0:00:39]} 29. Red1 {[%emt 0:00:11]} Rxd4 {[%emt 0:00:08]} 30. Rxd4 {[%emt 0:00:01]} Bd5 {[%emt 0:00:01]} 31. Bf3 {[%emt 0:00:43]} Bxf3 {[%emt 0:00:01]} 32. gxf3 {[%emt 0:00:01]} Nd7 {[%emt 0:00:18]} 33. b4 {[%emt 0:00:12]} Ra8 {[%emt 0:00:09]} 34. bxa5 {[%emt 0:00:11]} Rxa5 {[%emt 0:00:17]} 35. Nb6 {[%emt 0:00:07]} Nxb6 {[%emt 0:00:09]} 36. cxb6 {[%emt 0:00:01]} Ra8 {[%emt 0:00:01]} 37. d7 {[%emt 0:00:19]} Rd8 {[%emt 0:00:01]} 38. a4 {[%emt 0:00:01]} Kf8 {[%emt 0:00:00]} 39. a5 {[%emt 0:00:01]} Ke7 {[%emt 0:00:16]} 40. a6 {[%emt 0:00:36]} bxa6 {[%emt 0:00:09]} 41. b7 {[%emt 0:00:04]} c5 {[%emt 0:00:17]} 42. Rd5 {[%emt 0:00:01]} a5 {[%emt 0:00:22]} 43. Rxc5 {[%emt 0:00:04]} Rg8+ {[%emt 0:00:01]} 44. Kf2 {[%emt 0:00:02]} Kxd7 {[%emt 0:00:01]} 45. Rxa5 {[%emt 0:00:11]} Rb8 {[%emt 0:00:12]} 46. Rb5 {[%emt 0:00:11]} Kc7 {[%emt 0:00:13]} 47. Rxf5 {[%emt 0:00:04]} Rxb7 {[%emt 0:00:03]} 48. Rxf6 {[%emt 0:00:02]} Rb2+ {[%emt 0:00:03]} 49. Ke3 {[%emt 0:00:03]} Rh2 {[%emt 0:00:01]} 50. f5 {[%emt 0:00:15]} Rxh3 {[%emt 0:00:02]} 51. Rxf7+ Kd8 52. Rh7 {[%emt 0:00:17]} Ke8 {[%emt 0:00:19]} 53. Kf4 {[%emt 0:00:16]} Kf8 {[%emt 0:00:03]} 54. f6 {[%emt 0:00:04]} Kg8 {[%emt 0:00:38]} 55. Rg7+ {[%emt 0:00:39]} Kf8 {[%emt 0:00:01]} 56. Ra7 {[%emt 0:00:06]} Rg3 {[%emt 0:00:23]} 57. Rh7 {[%emt 0:00:09]} Rh3 {[%emt 0:00:06]} 58. Ke4 {[%emt 0:00:02]} Rg3 {[%emt 0:00:13]} 59. Rxh4 {[%emt 0:00:38]} Kf7 {[%emt 0:00:09]} 60. Rh6 {[%emt 0:00:14]} Rg5 {[%emt 0:00:08]} 61. Kf4 {[%emt 0:00:09]} Ra5 {[%emt 0:00:01]} 62. Kg4 {[%emt 0:00:07]} Rb5 {[%emt 0:00:02]} 63. Kf4 {[%emt 0:00:15]} Ra5 {[%emt 0:00:01]} 64. Kg4 {[%emt 0:00:10]} Rb5 {[%emt 0:00:00]} 65. Rh5 {[%emt 0:00:04]} Rb4+ {[%emt 0:00:34]} 66. f4 {[%emt 0:00:02]} Kxf6 {[%emt 0:00:04]} 67. Rh6+ {[%emt 0:00:03]} Kg7 {[%emt 0:00:05]} 68. Ra6 {[%emt 0:00:03]} Rb5 {[%emt 0:00:03]} 69. f5 {[%emt 0:00:36]} Rb1 {[%emt 0:00:03]} 70. Ra7+ {[%emt 0:00:04]} Kf6 {[%emt 0:00:00]} 71. Ra6+ {[%emt 0:00:01]} Kf7 {[%emt 0:00:01]} 1/2-1/2